fUSD/lending_fUSD_20250405
["ID","MTS","AMOUNT","RATE_DAILY","PERIOD"]
[357208582,1743894651345,-500.0,0.00030136,2]
[357208583,1743894651354,-500.0,0.00030136,2]
[357208584,1743894651363,-500.0,0.00030136,2]
[357208585,1743894651372,-511.82923841,0.00030136,2]
[357208586,1743894651381,-500.0,0.00030136,2]
[357208587,1743894651390,-500.0,0.00030136,2]
[357208588,1743894651400,-500.0,0.00030136,2]
[357208589,1743894651409,-506.80120966,0.00030136,2]
[357208590,1743894651421,-500.0,0.00030136,2]
[357208591,1743894651431,-508.4070838,0.00030136,2]
[357208592,1743894651439,-500.0,0.00030136,2]
[357208593,1743894651448,-500.0,0.00030136,2]
[357208594,1743894651458,-500.0,0.00030136,2]
[357208595,1743894651467,-509.62789269,0.00030136,2]
[357208596,1743894651476,-516.01853022,0.00030136,2]
[357208597,1743894651485,-500.0,0.00030136,2]
[357208598,1743894651495,-510.98338077,0.00030136,2]
[357208599,1743894651504,-500.0,0.00030136,2]
[357208600,1743894651515,-514.9484629,0.00030136,2]
[357208601,1743894651524,-500.0,0.00030136,2]
[357208602,1743894651533,-500.0,0.00030136,2]
[357208603,1743894651542,-840.68,0.00030136,2]
[357208604,1743894651552,-500.0,0.00030136,2]
[357208605,1743894651562,-512.42813622,0.00030136,2]
[357208606,1743894651572,-549.53132082,0.00030136,2]
[357208607,1743894651581,-500.0,0.00030136,2]
[357208608,1743894651591,-500.0,0.00030136,2]
[357208609,1743894651600,-500.0,0.00030136,2]
[357208610,1743894651609,-173.3194,0.00030136,45]
[357208611,1743894651618,-821.92,0.00030136,2]
[357208612,1743894651627,-500.0,0.00030136,2]
[357208613,1743894651636,-500.0,0.00030136,2]
[357208614,1743894651645,-508.79568796,0.00030136,2]
[357208615,1743894651654,-500.0,0.00030136,2]
[357208616,1743894651663,-530.73285427,0.00030136,2]
[357208617,1743894651672,-500.0,0.00030136,2]
[357208618,1743894651681,-500.0,0.00030136,2]
[357208619,1743894651690,-500.0,0.00030136,2]
[357208620,1743894651699,-500.93934207,0.00030136,2]
[357208621,1743894651709,-507.25487999,0.00030136,2]
[357208622,1743894651718,-219.87282087,0.00030136,2]
[357208623,1743894651727,-500.0,0.00030136,2]
[357208624,1743894651736,-155.71670691,0.00030136,2]
[357208625,1743894651750,-349.79683733,0.00030136,2]
[357208626,1743894651759,-160.33975781,0.00030136,2]
[357208627,1743894651768,-506.78555223,0.00030136,2]
[357208628,1743894651778,-523.64388739,0.00030136,2]
[357208629,1743894651789,-503.8039511,0.00030136,2]
[357208630,1743894651798,-507.21319461,0.00030136,2]
[357208631,1743894651807,-500.0,0.00030136,2]
[357208632,1743894651816,-502.79105217,0.00030136,2]
[357208633,1743894651826,-500.0,0.00030136,2]
[357208634,1743894651836,-264.37945331,0.00030136,2]
[357208635,1743894707183,-156.0,0.00024188,2]
[357208636,1743894707205,-42.72,0.00030026,2]
[357208637,1743894893742,193.4,0.00029556,120]
[357208638,1743895511002,-349.05799238,0.000154,2]
[357208639,1743895519717,3027.9868677,9e-05,2]
[357208640,1743895521787,-239.61722563,0.000154,2]
[357208641,1743895525522,989.98678035,0.000108,2]
[357208642,1743895536214,-286.19023269,0.000154,2]
[357208643,1743895536245,221.15852275,8e-05,2]
[357208652,1743895563406,-194.83188909,0.00015399,2]
[357208653,1743895571925,-105.16811091,0.00015399,2]
[357208654,1743895571948,-55.35723909,0.000154,2]
[357208655,1743895589430,1485.14138977,0.00015,2]
[357208656,1743895624934,-300.0,0.00015399,2]
[357208657,1743895624958,-75.0204,0.000154,2]
[357208658,1743895629787,-150.0,0.000153,2]
[357208659,1743895630856,3664.17952978,0.00015,2]
[357208694,1743895655726,-189.0445,0.000153,2]
[357208695,1743895675278,431.59690965,0.0001,2]
[357208696,1743895675320,882.97727192,0.0001,2]
[357208697,1743895680271,-398.2235,0.00015,2]
[357208698,1743895681961,-150.0,0.00015,2]
[357208702,1743895742551,-250.0,0.00014999,2]
[357208705,1743895768249,-50.0,0.00014999,2]
[357208706,1743895768274,-250.0,0.00015,2]
[357208707,1743895780353,-9831.03488817,0.00015,2]
[357208708,1743895780434,-9831.03488817,0.00015,2]
[357208709,1743895780535,-1745.73977038,0.00015,2]
[357208710,1743895781186,-150.0,0.00015,2]
[357208711,1743895802024,-150.0,0.00014999,2]
[357208712,1743895805307,-150.0,0.00014999,2]
[357208713,1743895805351,-150.0,0.00014999,2]
[357208714,1743895805398,-9959.1910791,0.00015,2]
[357208715,1743895805457,-10259.1910791,0.00015,2]
[357208716,1743895805532,-1218.38526515,0.00015,2]
[357208717,1743895805992,-159.79533431,0.00015,2]
[357208718,1743895817924,-167.8371,0.0001499,2]
[357208722,1743895831789,-5.7529,0.0001499,2]
[357208723,1743895831798,-690.86754734,0.00015,2]
[357208724,1743895831876,-946.24,0.00015,2]
[357208725,1743895831888,-188991.67977216,0.00015,2]
[357208726,1743895831899,-313.82777586,0.00015,2]
[357208727,1743895831911,-366.84501,0.00015,2]
[357208728,1743895831922,-1156.70713892,0.00015,2]
[357208729,1743895831933,-1072.85814865,0.00015,2]
[357208730,1743895831946,-738.9994469,0.00015,2]
[357208731,1743895831956,-774.11146098,0.00015,2]
[357208732,1743895831984,-895.97952156,0.00015,2]
[357208733,1743895831995,-1408.79014027,0.00015,2]
[357208734,1743895832006,-500.0,0.00015,2]
[357208736,1743895832192,-855.60425003,0.00015,2]
[357208739,1743895832214,-10757.04963509,0.00015,2]
[357208741,1743895832225,-74835.52320145,0.00015,2]
[357208743,1743895832237,-12538.09456825,0.00015,2]
[357208746,1743895832248,-3081.98986337,0.00015,2]
[357208748,1743895832260,-3145.05925856,0.00015,2]
[357208750,1743895832272,-4050.0,0.00015,2]
[357208752,1743895832284,-2719.999997,0.00015,2]
[357208754,1743895832295,-8999.0704576,0.00015,2]
[357208756,1743895832306,-568.16930016,0.00015,2]
[357208759,1743895832317,-65859.65616076,0.00015,2]
[357208762,1743895832338,-13993.1342087,0.00015,2]
[357208764,1743895832348,-400.0,0.000152,2]
[357208766,1743895832358,-278.5955,0.000153,2]
[357208768,1743895832370,-12588.86429904,0.000154,2]
[357208770,1743895832379,-205.0,0.00016124,2]
[357208772,1743895832388,-420.0,0.00016416,2]
[357208774,1743895832398,-239.61722563,0.00016747,2]
[357208776,1743895832408,-250.0,0.0001694,2]
[357208778,1743895832420,-250.0,0.000172,2]
[357208780,1743895832430,-319.0,0.00017966,2]
[357208782,1743895832439,-250.0,0.00018868,2]
[357208784,1743895832450,-250.0,0.00019,2]
[357208786,1743895832462,-25770.55385097,0.00019,2]
[357208788,1743895832472,-969.91,0.00019,2]
[357208790,1743895832481,-1050.21681067,0.0001995,2]
[357208792,1743895832490,-7475.91545377,0.0001999,2]
[357208794,1743895832499,-18271.49352122,0.0002,2]
[357208796,1743895832513,-5458.00703513,0.0002,2]
[357209125,1743895837746,-1296.4560435,0.0002,2]
[357209126,1743895837835,-4049.8026,0.0002,2]
[357209127,1743895837849,-548.05000155,0.0002,2]
[357209128,1743895837861,-423.82590353,0.0002,2]
[357209129,1743895837872,-4108.3547939,0.0002,2]
[357209130,1743895837884,-20683.16853405,0.0002,2]
[357209131,1743895837896,-169503.83409735,0.0002,2]
[357209132,1743895837907,-775.44461026,0.0002,2]
[357209133,1743895837944,-929.41239997,0.0002,2]
[357209134,1743895837956,-149604.82860638,0.0002,2]
[357209135,1743895837968,-197231.59908722,0.0002,2]
[357209136,1743895837978,-150.74,0.0002,2]
[357209137,1743895837988,-1911.58601764,0.00020063,2]
[357209138,1743895837997,-168.31968479,0.000209,2]
[357209139,1743895838007,-300.0,0.00021,2]
[357209140,1743895838016,-260.71490296,0.000217,2]
[357209141,1743895838026,-246.97131354,0.00022,2]
[357209142,1743895838036,-500.0,0.00022,2]
[357209143,1743895838047,-250.0,0.00022118,2]
[357209144,1743895838056,-1139.56513081,0.000225,2]
[357209145,1743895838065,-350.0,0.00023,2]
[357209146,1743895838075,-9180.31772193,0.000232,2]
[357209147,1743895838086,-534.70682297,0.000232,2]
[357209148,1743895838098,-364.04259866,0.000232,2]
[357209149,1743895838114,-624.1476786,0.000232,2]
[357209150,1743895838126,-4527.09366746,0.000232,2]
[357209151,1743895838137,-3067.99999,0.000232,2]
[357209152,1743895838148,-320.35899194,0.000232,2]
[357209153,1743895838159,-8103.54728623,0.000232,2]
[357209197,1743895839937,-331.9490945,0.000232,2]
[357209198,1743895839948,-302.3464671,0.000232,2]
[357209199,1743895839960,-2087.9134772,0.000232,2]
[357209200,1743895840158,-12648.18233158,0.000232,2]
[357209201,1743895840169,-3623.06976346,0.000232,2]
[357209202,1743895840180,-1514.18822812,0.000232,2]
[357209203,1743895840196,-2976.23766342,0.000232,2]
[357209204,1743895840207,-104.07049485,0.00023294,2]
[357209205,1743895840286,-798.96950515,0.00023294,2]
[357209206,1743895840296,-200.0,0.000235,2]
[357209207,1743895840306,-1911.58601764,0.000236,2]
[357209208,1743895840315,-1319.61534989,0.0002399,2]
[357209209,1743895840325,-51525.18999636,0.00024,2]
[357209210,1743895840335,-982.09056857,0.00024,2]
[357209211,1743895840344,-40721.98840187,0.00024,2]
[357209212,1743895840354,-783.84768066,0.0002402,2]
[357209213,1743895840363,-505.94645046,0.000241,2]
[357209214,1743895840374,-405.79238113,0.0002421,2]
[357209215,1743895840383,-3555.72150417,0.0002421,2]
[357209217,1743895840393,-29398.71,0.00024455,2]
[357209219,1743895840402,-153.04,0.00024799,2]
[357209220,1743895840412,-153.04,0.00024799,2]
[357209221,1743895840421,-288389.965303,0.000248,2]
[357209222,1743895840431,-512.34243424,0.0002488,7]
[357209223,1743895840440,-89262.3474281,0.000249,2]
[357209224,1743895840450,-2550.35278366,0.0002499,2]
[357209225,1743895840462,-400.0,0.00025,2]
[357209226,1743895840473,-785.28095846,0.00025,2]
[357209227,1743895840483,-165.5,0.00026849,2]
[357209229,1743895840492,-6672.0,0.000269,2]
[357209230,1743895840501,-1911.58601764,0.00027138,2]
[357209231,1743895840511,-2043.79583998,0.000275,2]
[357209232,1743895840521,-5555.0,0.000276,3]
[357209233,1743895840531,-500.0,0.00027699,2]
[357209234,1743895840541,-5555.0,0.000284,5]
[357209235,1743895840551,-5100.70556732,0.00028632,2]
[357209236,1743895840561,-23900.0,0.00028642,2]
[357209237,1743895840571,-223.31,0.00028749,2]
[357209238,1743895840580,-200.0,0.00028796,2]
[357209239,1743895840590,-803.87,0.0002885,2]
[357209240,1743895840600,-417.5,0.00028896,2]
[357209241,1743895840610,-200.0,0.00028965,2]
[357209242,1743895840619,-442.61,0.00029099,2]
[357209243,1743895840630,-2550.35278366,0.00029106,2]
[357209244,1743895840640,-20658.03,0.00029116,2]
[357209245,1743895840649,-246.83,0.00029338,2]
[357209246,1743895840659,-2000.0,0.00029367,2]
[357209247,1743895840668,-179.27,0.00029428,2]
[357209248,1743895840677,-150.0,0.00029458,7]
[357209249,1743895840686,-150.0,0.00029631,2]
[357209250,1743895840695,-1000.0,0.00029679,2]
[357209251,1743895840705,-166.66,0.00029788,2]
[357209252,1743895840714,-184.07,0.0002983,2]
[357209253,1743895840724,-1149.2003,0.00029941,2]
[357209254,1743895840733,-451.07100473,0.0003,20]
[357209255,1743895840742,-159.7929,0.00030026,2]
[357209256,1743895840751,-433.4388,0.00030026,2]
[357209257,1743895840760,-1000.0,0.00030026,2]
[357209258,1743895840770,-2670.3527,0.00030026,2]
[357209259,1743895840779,-1071.1778,0.00030026,2]
[357209260,1743895840788,-1716.83974881,0.00030026,2]
[357209261,1743895840798,-804.0017,0.00030036,10]
[357209262,1743895840807,-301.33,0.00030036,2]
[357209263,1743895840816,-161.0038,0.00030036,2]
[357209264,1743895840825,-2883.5342,0.00030036,2]
[357209265,1743895840835,-982.1267,0.00030036,2]
[357209266,1743895840844,-2467.7541,0.00030036,2]
[357209267,1743895840853,-222.7585,0.00030036,2]
[357209268,1743895840862,-436.911,0.00030036,24]
[357209269,1743895840871,-59661.9773,0.00030041,2]
[357209270,1743895840881,-2440.663,0.00030041,2]
[357209271,1743895840890,-12620.4529335,0.00030136,2]
[357209272,1743895840900,-318.825437,0.00030136,2]
[357209273,1743895840910,-600.0,0.00030136,2]
[357209274,1743895840920,-416.74689519,0.00030136,2]
[357209275,1743895840929,-552.51314024,0.00030136,2]
[357209276,1743895840938,-540.45490497,0.00030136,2]
[357209277,1743895840948,-511.33216872,0.00030136,2]
[357209278,1743895840958,-519.05196203,0.00030136,2]
[357209279,1743895840967,-484.11755892,0.00030136,2]
[357209280,1743895840976,-521.27420829,0.00030136,2]
[357209281,1743895840985,-500.0,0.00030136,2]
[357209282,1743895840994,-532.88741414,0.00030136,2]
[357209283,1743895841003,-525.30578907,0.00030136,2]
[357209284,1743895841013,-500.0,0.00030136,2]
[357209285,1743895841022,-513.22466243,0.00030136,2]
[357209286,1743895841031,-508.48356023,0.00030136,2]
[357209287,1743895841039,-524.74610036,0.00030136,2]
[357209288,1743895841049,-508.32025515,0.00030136,2]
[357209289,1743895841058,-500.0,0.00030136,2]
[357209290,1743895841067,-500.0,0.00030136,2]
[357209291,1743895841076,-500.0,0.00030136,2]
[357209292,1743895841085,-500.0,0.00030136,2]
[357209293,1743895841094,-500.0,0.00030136,2]
[357209294,1743895841103,-500.0,0.00030136,2]
[357209295,1743895841113,-502.95700431,0.00030136,2]
[357209296,1743895841122,-500.0,0.00030136,2]
[357209297,1743895841131,-497.36128,0.00030136,2]
[357209298,1743895841140,-500.0,0.00030136,2]
[357209299,1743895841149,-516.05225113,0.00030136,2]
[357209300,1743895841158,-431.51288918,0.00030136,2]
[357209301,1743895841168,-500.0,0.00030136,2]
[357209302,1743895841177,-500.0,0.00030136,2]
[357209303,1743895841186,-507.23948785,0.00030136,2]
[357209304,1743895841197,-500.0,0.00030136,2]
[357209305,1743895841206,-500.0,0.00030136,2]
[357209306,1743895841215,-500.0,0.00030136,2]
[357209307,1743895841225,-500.0,0.00030136,2]
[357209308,1743895841234,-500.0,0.00030136,2]
[357209309,1743895841243,-500.0,0.00030136,2]
[357209310,1743895841251,-500.0,0.00030136,2]
[357209311,1743895841260,-500.0,0.00030136,2]
[357209312,1743895841269,-500.0,0.00030136,2]
[357209313,1743895841278,-500.0,0.00030136,2]
[357209314,1743895841287,-539.12562432,0.00030136,2]
[357209315,1743895841296,-500.0,0.00030136,2]
[357209316,1743895841305,-500.0,0.00030136,2]
[357209317,1743895841314,-433.0707892,0.00030136,2]
[357209318,1743895841323,-548.1685957,0.00030136,2]
[357209319,1743895841331,-500.0,0.00030136,2]
[357209320,1743895841340,-500.0,0.00030136,2]
[357209321,1743895841349,-505.9817568,0.00030136,2]
[357209322,1743895841358,-554.90774103,0.00030136,2]
[357209323,1743895841367,-500.0,0.00030136,2]
[357209324,1743895841376,-609.32589591,0.00030136,2]
[357209325,1743895841385,-500.0,0.00030136,2]
[357209326,1743895841394,-507.8572718,0.00030136,2]
[357209327,1743895841403,-560.78729335,0.00030136,2]
[357209328,1743895841412,-568.75309296,0.00030136,2]
[357209329,1743895841420,-617.59858008,0.00030136,2]
[357209330,1743895841429,-543.52657837,0.00030136,2]
[357209331,1743895841438,-500.0,0.00030136,2]
[357209332,1743895841447,-508.27144037,0.00030136,2]
[357209333,1743895841456,-500.0,0.00030136,2]
[357209334,1743895841469,-500.0,0.00030136,2]
[357209335,1743895841478,-505.06393486,0.00030136,2]
[357209336,1743895841487,-500.0,0.00030136,2]
[357209337,1743895841496,-508.68354348,0.00030136,2]
[357209338,1743895841506,-500.0,0.00030136,2]
[357209339,1743895841515,-514.53213564,0.00030136,2]
[357209340,1743895841524,-529.20585828,0.00030136,2]
[357209341,1743895841533,-500.0,0.00030136,2]
[357209342,1743895841544,-500.0,0.00030136,2]
[357209343,1743895841554,-502.25772223,0.00030136,2]
[357209344,1743895841563,-441.66614877,0.00030136,2]
[357209345,1743895841572,-511.47505377,0.00030136,2]
[357209346,1743895841581,-500.0,0.00030136,2]
[357209347,1743895841590,-500.0,0.00030136,2]
[357209348,1743895841599,-502.90780583,0.00030136,2]
[357209349,1743895841608,-526.21053205,0.00030136,2]
[357209350,1743895841618,-505.095952,0.00030136,2]
[357209351,1743895841628,-500.0,0.00030136,2]
[357209352,1743895841637,-500.0,0.00030136,2]
[357209353,1743895841647,-531.35835428,0.00030136,2]
[357209354,1743895841656,-549.55186746,0.00030136,2]
[357209355,1743895841666,-508.54386064,0.00030136,2]
[357209356,1743895841675,-540.68532197,0.00030136,2]
[357209357,1743895841685,-534.70737218,0.00030136,2]
[357209358,1743895841694,-503.67544351,0.00030136,2]
[357209359,1743895841703,-528.97756958,0.00030136,2]
[357209360,1743895841713,-500.0,0.00030136,2]
[357209361,1743895841722,-500.0,0.00030136,2]
[357209362,1743895841732,-500.0,0.00030136,2]
[357209363,1743895841742,-505.35427719,0.00030136,2]
[357209364,1743895841751,-508.07465089,0.00030136,2]
[357209365,1743895841761,-500.0,0.00030136,2]
[357209366,1743895841770,-515.62440317,0.00030136,2]
[357209367,1743895841780,-500.0,0.00030136,2]
[357209368,1743895841789,-502.59980511,0.00030136,2]
[357209369,1743895841798,-500.0,0.00030136,2]
[357209370,1743895841807,-500.0,0.00030136,2]
[357209371,1743895841817,-500.0,0.00030136,2]
[357209372,1743895841826,-403.22168608,0.00030136,2]
[357209373,1743895841835,-500.0,0.00030136,2]
[357209374,1743895841845,-500.0,0.00030136,2]
[357209375,1743895841854,-500.0,0.00030136,2]
[357209376,1743895841863,-525.25055301,0.00030136,2]
[357209377,1743895841872,-500.0,0.00030136,2]
[357209378,1743895841882,-500.0,0.00030136,2]
[357209379,1743895841891,-500.0,0.00030136,2]
[357209380,1743895841901,-500.0,0.00030136,2]
[357209381,1743895841910,-500.0,0.00030136,2]
[357209382,1743895841920,-511.57825979,0.00030136,2]
[357209383,1743895841929,-500.0,0.00030136,2]
[357209384,1743895841938,-500.0,0.00030136,2]
[357209385,1743895841948,-500.0,0.00030136,2]
[357209386,1743895841957,-500.0,0.00030136,2]
[357209387,1743895841966,-500.0,0.00030136,2]
[357209388,1743895841976,-500.0,0.00030136,2]
[357209389,1743895841985,-500.0,0.00030136,2]
[357209390,1743895841994,-500.0,0.00030136,2]
[357209391,1743895842004,-500.0,0.00030136,2]
[357209392,1743895842013,-500.0,0.00030136,2]
[357209393,1743895842023,-500.0,0.00030136,2]
[357209394,1743895842033,-500.0,0.00030136,2]
[357209395,1743895842042,-500.0,0.00030136,2]
[357209396,1743895842052,-505.83241189,0.00030136,2]
[357209397,1743895842061,-500.0,0.00030136,2]
[357209398,1743895842071,-500.0,0.00030136,2]
[357209399,1743895842080,-550.53946758,0.00030136,2]
[357209400,1743895842090,-500.0,0.00030136,2]
[357209401,1743895842099,-500.0,0.00030136,2]
[357209402,1743895842108,-500.0,0.00030136,2]
[357209403,1743895842118,-500.0,0.00030136,2]
[357209404,1743895842127,-500.0,0.00030136,2]
[357209405,1743895842137,-500.0,0.00030136,2]
[357209406,1743895842146,-500.0,0.00030136,2]
[357209407,1743895842156,-500.0,0.00030136,2]
[357209408,1743895842165,-500.0,0.00030136,2]
[357209409,1743895842174,-500.0,0.00030136,2]
[357209410,1743895842183,-500.0,0.00030136,2]
[357209411,1743895842193,-517.104436,0.00030136,2]
[357209412,1743895842202,-500.0,0.00030136,2]
[357209413,1743895842211,-500.0,0.00030136,2]
[357209414,1743895842220,-500.0,0.00030136,2]
[357209415,1743895842230,-503.02119422,0.00030136,2]
[357209416,1743895842344,-500.0,0.00030136,2]
[357209417,1743895842369,-520.24134621,0.00030136,2]
[357209418,1743895842379,-500.0,0.00030136,2]
[357209419,1743895842388,-508.33620868,0.00030136,2]
[357209420,1743895842398,-500.0,0.00030136,2]
[357209421,1743895842407,-500.0,0.00030136,2]
[357209422,1743895842416,-500.0,0.00030136,2]
[357209423,1743895842426,-500.0,0.00030136,2]
[357209424,1743895842435,-500.0,0.00030136,2]
[357209425,1743895842444,-500.0,0.00030136,2]
[357209426,1743895842453,-500.0,0.00030136,2]
[357209427,1743895842465,-500.0,0.00030136,2]
[357209428,1743895842474,-500.0,0.00030136,2]
[357209429,1743895842483,-516.09266075,0.00030136,2]
[357209430,1743895842492,-500.0,0.00030136,2]
[357209431,1743895842502,-500.0,0.00030136,2]
[357209432,1743895842512,-500.0,0.00030136,2]
[357209433,1743895842521,-500.0,0.00030136,2]
[357209434,1743895842530,-500.0,0.00030136,2]
[357209435,1743895842541,-506.08294856,0.00030136,2]
[357209436,1743895842551,-500.0,0.00030136,2]
[357209437,1743895842560,-500.0,0.00030136,2]
[357209438,1743895842570,-504.19610242,0.00030136,2]
[357209439,1743895842579,-509.70303458,0.00030136,2]
[357209440,1743895842588,-500.0,0.00030136,2]
[357209441,1743895842598,-500.0,0.00030136,2]
[357209442,1743895842607,-500.0,0.00030136,2]
[357209443,1743895842616,-500.0,0.00030136,2]
[357209444,1743895842626,-500.0,0.00030136,2]
[357209445,1743895842635,-504.45535021,0.00030136,2]
[357209446,1743895842644,-505.86040666,0.00030136,2]
[357209447,1743895842654,-500.0,0.00030136,2]
[357209448,1743895842663,-513.07251488,0.00030136,2]
[357209449,1743895842671,-500.0,0.00030136,2]
[357209450,1743895842680,-507.1141183,0.00030136,2]
[357209451,1743895842690,-503.6951467,0.00030136,2]
[357209452,1743895842699,-500.0,0.00030136,2]
[357209453,1743895842708,-500.0,0.00030136,2]
[357209454,1743895842717,-250.00777892,0.00030136,2]
[357209455,1743895842726,-500.0,0.00030136,2]
[357209456,1743895842735,-531.39474744,0.00030136,2]
[357209457,1743895842744,-335.73737279,0.00030136,2]
[357209459,1743895842753,-507.79037273,0.00030136,2]
[357209460,1743895842762,-508.75430924,0.00030136,2]
[357209462,1743895842771,-505.16843428,0.00030136,2]
[357209463,1743895842780,-500.0,0.00030136,2]
[357209464,1743895842789,-500.0,0.00030136,2]
[357209465,1743895842798,-514.60096779,0.00030136,2]
[357209466,1743895842807,-500.0,0.00030136,2]
[357209467,1743895842816,-500.0,0.00030136,2]
[357209468,1743895842825,-534.40297966,0.00030136,2]
[357209469,1743895842834,-500.0,0.00030136,2]
[357209470,1743895842843,-500.0,0.00030136,2]
[357209471,1743895842853,-500.0,0.00030136,2]
[357209472,1743895842862,-500.0,0.00030136,2]
[357209473,1743895842871,-500.0,0.00030136,2]
[357209474,1743895842880,-500.0,0.00030136,2]
[357209475,1743895842889,-500.0,0.00030136,2]
[357209476,1743895842898,-500.0,0.00030136,2]
[357209477,1743895842907,-500.0,0.00030136,2]
[357209478,1743895842917,-500.0,0.00030136,2]
[357209479,1743895842926,-511.17087068,0.00030136,2]
[357209480,1743895842935,-500.0,0.00030136,2]
[357209481,1743895842944,-578.74370153,0.00030136,2]
[357209482,1743895842954,-500.0,0.00030136,2]
[357209483,1743895842963,-358.73733384,0.00030136,2]
[357209484,1743895842972,-500.0,0.00030136,2]
[357209485,1743895842981,-500.0,0.00030136,2]
[357209486,1743895842990,-500.0,0.00030136,2]
[357209487,1743895842999,-537.39354395,0.00030136,2]
[357209488,1743895843009,-531.35079814,0.00030136,2]
[357209489,1743895843019,-500.0,0.00030136,2]
[357209490,1743895843028,-533.86291561,0.00030136,2]
[357209491,1743895843038,-500.0,0.00030136,2]
[357209492,1743895843047,-500.0,0.00030136,2]
[357209493,1743895843056,-500.0,0.00030136,2]
[357209494,1743895843065,-500.0,0.00030136,2]
[357209495,1743895843074,-500.0,0.00030136,2]
[357209496,1743895843083,-500.0,0.00030136,2]
[357209497,1743895843092,-516.20788152,0.00030136,88]
[357209498,1743895843101,-511.08835319,0.00030136,2]
[357209499,1743895843112,-505.73646463,0.00030136,2]
[357209500,1743895843121,-506.01340344,0.00030136,2]
[357209501,1743895843130,-500.0,0.00030136,2]
[357209502,1743895843139,-502.44031607,0.00030136,2]
[357209503,1743895843148,-505.53603519,0.00030136,2]
[357209504,1743895843158,-509.50712034,0.00030136,2]
[357209505,1743895843167,-503.15962748,0.00030136,2]
[357209506,1743895843176,-498.08327618,0.00030136,2]
[357209507,1743895843185,-515.35551649,0.00030136,2]
[357209508,1743895843194,-525.27678245,0.00030136,2]
[357209509,1743895843204,-509.40959201,0.00030136,2]
[357209510,1743895843213,-538.0082809,0.00030136,2]
[357209511,1743895843223,-503.04602052,0.00030136,2]
[357209513,1743895843232,-500.0,0.00030136,2]
[357209514,1743895843243,-501.28079609,0.00030136,2]
[357209515,1743895843254,-500.0,0.00030136,2]
[357209516,1743895843263,-500.0,0.00030136,2]
[357209517,1743895843273,-500.0,0.00030136,2]
[357209518,1743895843283,-500.0,0.00030136,2]
[357209519,1743895843292,-518.77294444,0.00030136,2]
[357209520,1743895843304,-500.0,0.00030136,2]
[357209521,1743895843314,-544.30129718,0.00030136,2]
[357209522,1743895843324,-500.0,0.00030136,2]
[357209523,1743895843333,-531.57265854,0.00030136,2]
[357209524,1743895843342,-500.0,0.00030136,2]
[357209525,1743895843351,-523.69889083,0.00030136,2]
[357209526,1743895843360,-500.0,0.00030136,2]
[357209527,1743895843369,-510.6274634,0.00030136,2]
[357209528,1743895843378,-513.92602026,0.00030136,2]
[357209529,1743895843387,-500.0,0.00030136,2]
[357209530,1743895843396,-499.53835418,0.00030136,2]
[357209531,1743895843405,-533.54266118,0.00030136,2]
[357209532,1743895843414,-500.0,0.00030136,2]
[357209533,1743895843423,-502.57674191,0.00030136,2]
[357209535,1743895843432,-500.0,0.00030136,2]
[357209537,1743895843442,-500.0,0.00030136,2]
[357209539,1743895843451,-507.2041937,0.00030136,2]
[357209540,1743895843467,-500.0,0.00030136,2]
[357209541,1743895843478,-500.0,0.00030136,2]
[357209542,1743895843488,-530.07349709,0.00030136,2]
[357209543,1743895843498,-500.0,0.00030136,2]
[357209544,1743895843507,-528.08023265,0.00030136,2]